bitfinex/quotes_ETHUSD_20241009
["timestamp","ask_amount","ask_price","bid_price","bid_amount"]
[1728478034956,4.1137,2430.9,2430.8,0.03919562]
[1728478035258,5.816725,2430.9,2430.8,0.05119562]
[1728478035500,12.62291557,2430.9,2430.8,0.05119562]
[1728478035792,8.816725,2430.9,2430.8,0.05119562]
[1728478036121,8.816725,2430.9,2430.8,0.0567998]
[1728478036874,8.816725,2430.9,2430.8,0.0527998]
[1728478037060,8.816725,2430.9,2430.8,0.0487998]
[1728478037275,8.816725,2430.9,2430.8,0.0407998]
[1728478037594,8.816725,2430.9,2430.8,0.0367998]
[1728478037761,5.816725,2430.9,2430.8,0.0327998]
[1728478037957,4.9175,2430.9,2430.8,0.0327998]
[1728478038160,4.9175,2430.9,2430.8,0.0367998]
[1728478038386,4.9175,2430.9,2430.8,0.0287998]
[1728478038584,4.9175,2430.9,2430.8,0.0247998]
[1728478038816,5.820615,2430.9,2430.8,0.0247998]
[1728478040399,8.824615,2430.9,2430.8,0.0247998]
[1728478040612,8.828615,2430.9,2430.8,0.0247998]
[1728478040818,8.832615,2430.9,2430.8,0.0247998]
[1728478041394,8.832615,2430.9,2430.8,0.0207998]
[1728478041599,14.06927648,2430.9,2430.8,0.0207998]
[1728478042726,14.07727648,2430.9,2430.8,0.0207998]
[1728478044037,9.390615,2430.9,2430.8,0.0207998]
[1728478045354,8.84626376,2430.9,2430.8,0.0207998]
[1728478048457,14.08292524,2430.9,2430.8,0.0207998]
[1728478048649,8.84626376,2430.9,2430.8,0.0207998]
[1728478048839,13.53292524,2430.9,2430.8,0.0207998]
[1728478049640,13.96251915,2430.9,2430.8,0.0207998]
[1728478050020,9.82585767,2430.9,2430.8,0.0207998]
[1728478050216,14.51251915,2430.9,2430.8,0.0207998]
[1728478052823,18.84951915,2430.9,2430.8,0.0207998]
[1728478053965,18.41992524,2430.9,2430.8,0.0207998]
[1728478054334,13.73326376,2430.9,2430.8,0.0207998]
[1728478054664,14.08292524,2430.9,2430.8,0.0207998]
[1728478054838,9.39626376,2430.9,2430.8,0.0207998]
[1728478056647,13.20617709,2430.9,2430.8,0.0207998]
[1728478057780,4.13934876,2430.9,2430.8,0.0207998]
[1728478059267,0.02564876,2430.9,2430.8,0.7910998]
[1728478059430,0.02564876,2430.9,2430.8,4.61301313]
[1728478059630,0.02564876,2430.9,2430.8,0.8070998]
[1728478059875,0.02564876,2430.9,2430.8,4.9329698]
[1728478060177,0.02564876,2430.9,2430.8,6.80914903]
[1728478060408,0.02564876,2430.9,2430.8,2.61301847]
[1728478060830,0.02564876,2430.9,2430.8,0.8190998]
[1728478061230,4.13934876,2430.9,2430.8,0.8190998]
[1728478061440,4.13934876,2430.9,2430.8,0.8110998]
[1728478061656,4.13934876,2430.9,2430.8,0.7990998]
[1728478061872,4.13934876,2430.9,2430.8,0.7910998]
[1728478062233,4.13934876,2430.9,2430.8,0.7790998]
[1728478063874,0.02564876,2430.9,2430.8,0.7790998]
[1728478064192,0.02564876,2430.9,2430.8,4.8929698]
[1728478064340,0.02564876,2430.9,2430.8,1.69203445]
[1728478064772,0.02564876,2430.9,2430.8,0.7790998]
[1728478064997,0.02564876,2430.9,2430.8,0.7870998]
[1728478065202,4.13934876,2430.9,2430.8,0.7950998]
[1728478065402,4.13934876,2430.9,2430.8,0.8070998]
[1728478065571,0.02564876,2430.9,2430.8,0.8190998]
[1728478065893,4.13934876,2430.9,2430.8,0.8190998]
[1728478068271,0.02564876,2430.9,2430.8,0.8190998]
[1728478068732,4.13934876,2430.9,2430.8,0.8190998]
[1728478068890,0.02564876,2430.9,2430.8,0.8190998]
[1728478069207,0.02564876,2430.9,2430.8,5.51487978]
[1728478069369,0.02564876,2430.9,2430.8,5.59713942]
[1728478070471,0.02564876,2430.9,2430.8,6.14713942]
[1728478071204,0.02564876,2430.9,2430.8,9.14713942]
[1728478071411,0.02564876,2430.9,2430.8,9.06487978]
[1728478073882,0.02564876,2430.9,2430.8,13.75084214]
[1728478074806,0.02564876,2430.9,2430.8,9.06487978]
[1728478074981,0.02564876,2430.9,2430.8,1.40100978]
[1728478075339,0.02564876,2430.9,2430.8,0.90136602]
[1728478075613,4.1337,2430.9,2430.8,0.8190998]
[1728478075818,0.02,2430.9,2430.8,0.8190998]
[1728478077628,4.1297,2430.9,2430.8,0.8190998]
[1728478079092,0.016,2430.9,2430.8,0.8190998]
[1728478079396,4.1257,2430.9,2430.8,1.40100978]
[1728478080438,4.1257,2430.9,2430.8,0.8190998]
[1728478080725,4.1257,2430.9,2430.8,0.0607998]
[1728478080933,4.1217,2430.9,2430.8,0.0607998]
[1728478081134,4.1177,2430.9,2430.8,0.0607998]
[1728478082217,4.8899,2430.9,2430.8,0.0567998]
[1728478082422,5.790244,2430.9,2430.8,0.0447998]
[1728478082714,5.790244,2430.9,2430.8,0.0287998]
[1728478083131,5.790244,2430.9,2430.8,0.0207998]
[1728478084535,8.790244,2430.9,2430.8,0.0207998]
[1728478084739,9.340244,2430.9,2430.8,0.0207998]
[1728478085238,14.02620636,2430.9,2430.8,0.0207998]
[1728478085795,8.790244,2430.9,2430.8,0.0207998]
[1728478086040,5.790244,2430.9,2430.8,0.0207998]
[1728478087115,8.790244,2430.9,2430.8,0.01519562]
[1728478087332,9.340244,2430.9,2430.8,0.01519562]
[1728478089195,4.454344,2430.9,2430.0,0.004]
[1728478089534,4.11905,2430.1,2430.0,0.004]
[1728478089748,4.13105,2430.1,2430.0,0.004]
[1728478089912,4.14069876,2430.1,2430.0,0.004]
[1728478090543,7.11522,2430.0,2429.9,0.02]
[1728478090711,11.80118236,2430.0,2429.9,0.02560418]
[1728478090895,11.80118236,2430.0,2429.9,0.02160418]
[1728478090896,13.88577147,2430.0,2429.9,0.02160418]
[1728478091231,9.19980911,2430.0,2429.9,0.02160418]
[1728478091449,9.19980911,2430.0,2429.9,0.01760418]
[1728478092147,9.98500911,2430.0,2429.9,0.00960418]
[1728478092435,9.98500911,2430.0,2429.9,0.00560418]
[1728478093727,10.53500911,2430.0,2429.9,0.00560418]
[1728478095071,10.53500911,2430.0,2429.3,0.004]
[1728478095241,4.11624,2429.4,2429.3,0.004]
[1728478095445,4.12024,2429.4,2429.3,0.004]
[1728478096008,4.12024,2429.4,2429.1,0.008]
[1728478096009,4.11622,2429.5,2429.2,0.8023]
[1728478096205,4.11616,2429.5,2429.2,0.8023]
[1728478096406,4.11616,2429.5,2429.4,0.00561028]
[1728478096603,4.11586,2429.7,2429.4,0.01121446]
[1728478096849,4.11586,2429.7,2429.5,0.8192]
[1728478097151,4.11586,2429.7,2429.6,0.0024]
[1728478097152,4.11574,2429.7,2429.6,0.0024]
[1728478097619,4.11574,2429.7,2429.6,0.0104]
[1728478097819,4.11574,2429.7,2429.6,0.0144]
[1728478098020,4.11574,2429.7,2429.6,0.0184]
[1728478098333,4.11974,2429.7,2429.6,0.0224]
[1728478098567,4.11974,2429.7,2429.6,0.0264]
[1728478098884,4.11974,2429.7,2429.6,0.0344]
[1728478099091,4.11974,2429.7,2429.6,0.04401028]
[1728478099291,4.12374,2429.7,2429.6,0.04961446]
[1728478099604,4.13338876,2429.7,2429.6,0.04961446]
[1728478099877,4.14138876,2429.7,2429.6,0.04561446]
[1728478100383,0.02564876,2429.7,2429.6,0.04561446]
[1728478100585,0.02564876,2429.7,2429.6,1.32858195]
[1728478100946,0.02564876,2429.7,2429.6,10.99448195]
[1728478101149,0.02564876,2429.7,2429.6,10.91617391]
[1728478101510,4.11387,2430.8,2430.4,4.11453]
[1728478101646,4.11379,2430.9,2430.5,0.08227853]
[1728478101847,4.11379,2430.9,2430.7,0.008]
[1728478101848,4.11387,2430.8,2430.7,0.008]
[1728478102053,4.11387,2430.8,2430.7,0.01761028]
[1728478102242,4.11387,2430.8,2430.7,0.02561028]
[1728478102446,4.11387,2430.8,2430.7,0.03601028]
[1728478102693,4.11387,2430.8,2430.7,0.04961446]
[1728478102843,4.11387,2430.8,2430.7,0.05361446]
[1728478103495,4.11289,2431.4,2430.9,0.8328]
[1728478103781,0.42944558,2431.5,2430.9,0.8328]
[1728478103782,0.42944558,2431.5,2431.3,0.004]
[1728478104085,4.11285,2431.5,2431.4,0.004]
[1728478104452,4.11259,2431.6,2431.4,0.00961028]
[1728478104904,4.11259,2431.6,2431.4,0.01201028]
[1728478105093,4.11259,2431.6,2431.4,0.83751446]
[1728478105390,4.11259,2431.6,2431.4,0.84951446]
[1728478105750,4.11268,2431.5,2431.4,0.84951446]
[1728478105944,4.11259,2431.6,2431.4,0.84951446]
[1728478106274,4.11268,2431.5,2431.4,0.84951446]
[1728478106585,4.11259,2431.6,2431.4,0.84951446]
[1728478106786,4.11228,2431.8,2431.4,0.84951446]
[1728478106959,4.11235,2431.7,2431.4,1.35600835]
[1728478107285,4.11235,2431.7,2431.5,0.004]
[1728478107602,4.11235,2431.7,2431.6,0.01361028]
[1728478108006,4.11235,2431.7,2431.6,0.01601028]
[1728478108602,4.11235,2431.7,2431.6,0.02401028]
[1728478108771,4.11235,2431.7,2431.6,0.02961446]
[1728478108962,4.11235,2431.7,2431.6,0.03361446]
[1728478109165,4.11235,2431.7,2431.6,0.03761446]
[1728478109463,4.11235,2431.7,2431.6,0.04561446]
[1728478111076,4.06235,2431.7,2431.6,0.04561446]
[1728478111330,4.07035,2431.7,2431.6,0.04561446]
[1728478111620,4.08799876,2431.7,2431.6,0.04561446]
[1728478113273,4.90802664,2431.7,2431.6,0.04561446]
[1728478113475,4.90802664,2431.7,2431.6,0.03761446]
[1728478113927,4.90802664,2431.7,2431.6,0.02561446]
[1728478114131,4.90802664,2431.7,2431.6,0.01361446]
[1728478114648,4.08799876,2431.7,2431.6,0.01361446]
[1728478114826,0.02564876,2431.7,2431.6,0.81271446]
[1728478115033,0.02564876,2431.7,2431.6,0.82071446]
[1728478115211,0.02564876,2431.7,2431.6,0.83671446]
[1728478115399,4.13798876,2431.7,2431.6,0.84871446]
[1728478115602,0.02564876,2431.7,2431.6,0.85271446]
[1728478116040,0.02564876,2431.7,2431.6,1.35749411]
[1728478116728,0.02564876,2431.7,2431.6,5.55224093]
[1728478116933,0.02564876,2431.7,2431.6,1.43973093]
[1728478118230,0.02564876,2431.7,2431.6,5.55224093]
[1728478118423,0.02564876,2431.7,2431.6,1.43973093]
[1728478118826,0.02564876,2431.7,2431.6,5.55224093]
[1728478119027,0.02564876,2431.7,2431.6,1.43973093]
[1728478120229,0.02564876,2431.7,2431.6,1.43973487]
[1728478120426,0.02564876,2431.7,2431.6,1.35749411]
[1728478122123,4.13798876,2431.7,2431.6,0.05361446]
[1728478128231,0.02564876,2431.7,2431.6,0.05361446]
[1728478128657,4.13798876,2431.7,2431.6,0.05361446]
[1728478129477,4.90738876,2431.7,2431.6,0.04161446]
[1728478129769,5.80934664,2431.7,2431.6,0.02961446]
[1728478129927,5.80934664,2431.7,2431.6,0.01761446]
[1728478130131,5.80934664,2431.7,2431.6,0.01361446]
[1728478130328,4.90738876,2431.7,2431.6,0.01761446]
[1728478130639,4.90738876,2431.7,2431.6,0.02961446]
[1728478130981,4.13798876,2431.7,2431.6,0.02961446]
[1728478131277,4.13798876,2431.7,2431.6,0.02161446]
[1728478131443,4.13798876,2431.7,2431.6,0.02561446]
[1728478131643,4.13798876,2431.7,2431.6,0.03761446]
[1728478131846,4.13798876,2431.7,2431.6,0.04561446]
[1728478132147,0.02564876,2431.7,2431.6,0.04561446]
[1728478134081,4.13798876,2431.7,2431.6,0.04561446]
[1728478136033,0.02564876,2431.7,2431.6,0.04561446]
[1728478136233,0.02564876,2431.7,2431.6,0.12786168]
[1728478136436,0.02564876,2431.7,2431.6,0.63389785]
[1728478137034,0.02564876,2431.7,2431.6,4.74640785]
[1728478137282,0.02564876,2431.7,2431.6,0.63389785]
[1728478137580,0.02564876,2431.7,2431.6,4.74640785]
[1728478137731,0.02564876,2431.7,2431.6,0.63389785]
[1728478138136,0.02564876,2431.7,2431.6,0.55165063]
[1728478138971,0.02564876,2431.7,2431.6,0.63388959]
[1728478140670,0.02564876,2431.7,2431.6,0.55165063]
[1728478141070,4.13798876,2431.7,2431.6,0.55165063]
[1728478141389,4.13798876,2431.7,2431.6,0.04561446]
[1728478142286,0.02564876,2431.7,2431.6,0.04561446]
[1728478142486,0.02564876,2431.7,2431.6,0.12785713]
[1728478144040,0.02564876,2431.7,2431.6,10.56616713]
[1728478144195,8.98468,2432.9,2432.4,4.88684]
[1728478144497,4.87423,2432.9,2432.7,0.008]
[1728478144697,4.11048,2432.8,2432.7,0.012]
[1728478144879,4.86378,2433.1,2432.7,0.024]
[1728478145084,4.11007,2433.1,2432.8,0.0024]
[1728478145293,4.11032,2432.9,2432.8,0.00801028]
[1728478146296,5.686067,2432.9,2432.8,0.01201028]
[1728478146602,4.11032,2432.9,2432.8,0.01601028]
[1728478146788,4.11032,2432.9,2432.8,0.02001028]
[1728478146991,4.11032,2432.9,2432.8,0.02961446]
[1728478147190,4.11032,2432.9,2432.8,0.03361446]
[1728478147516,4.10976,2433.3,2432.8,0.04161446]
[1728478147714,4.10983,2433.2,2432.8,0.6248396]
[1728478147919,4.1099,2433.2,2432.8,0.6248396]
[1728478148090,4.1099,2433.2,2432.8,0.61682932]
[1728478148285,4.10976,2433.3,2433.1,0.008]
[1728478148487,8.21952,2433.3,2433.1,0.008]
[1728478148883,8.21949,2433.3,2433.2,0.004]
[1728478149116,4.10973,2433.3,2433.2,0.004]
[1728478149415,4.10973,2433.3,2433.2,0.008]
[1728478149721,4.11373,2433.3,2433.2,0.008]
[1728478150011,4.11373,2433.3,2433.2,0.01760418]
[1728478150184,5.017301,2433.3,2433.2,0.01760418]
[1728478150386,5.021301,2433.3,2433.2,0.01760418]
[1728478150600,5.021301,2433.3,2433.2,0.02160418]
[1728478150914,5.02694976,2433.3,2433.2,0.02560418]
[1728478151480,5.02694976,2433.3,2433.2,0.02800418]
[1728478151709,5.03094976,2433.3,2433.2,0.03361446]
[1728478152107,5.03094976,2433.3,2433.2,0.03761446]
[1728478152108,4.12737876,2433.3,2433.2,0.03761446]
[1728478152315,4.12737876,2433.3,2433.2,0.04161446]
[1728478152520,4.13137876,2433.3,2433.2,0.04161446]
[1728478152679,4.13537876,2433.3,2433.2,0.04161446]
[1728478153177,0.02564876,2433.3,2433.2,0.04161446]
[1728478153619,0.02564876,2433.3,2433.2,0.04561446]
[1728478153785,0.02564876,2433.3,2433.2,0.05361446]
[1728478156195,0.02564876,2433.3,2433.2,4.98622446]
[1728478156396,0.02564876,2433.3,2433.2,10.98624411]
[1728478156738,0.02564876,2433.3,2433.2,6.79425293]
[1728478156880,0.02564876,2433.3,2433.2,6.8764327]
[1728478157319,0.02564876,2433.3,2433.2,10.9862427]
[1728478157524,0.02564876,2433.3,2433.2,10.90406293]
[1728478157725,0.02564876,2433.3,2433.2,14.45406293]
[1728478159640,0.02564876,2433.3,2433.2,18.67508293]
[1728478161191,0.02564876,2433.3,2433.2,19.28225462]
[1728478161628,0.02564876,2433.3,2433.2,19.28170746]
[1728478161924,0.02564876,2433.3,2433.2,19.89128659]
[1728478162236,0.02564876,2433.3,2433.2,54.89128659]
[1728478162723,0.02564876,2433.3,2433.2,53.19031895]
[1728478162929,0.02564876,2433.3,2433.2,17.89619495]
[1728478163088,0.02564876,2433.3,2433.2,14.51571142]
[1728478163293,0.02564876,2433.3,2433.2,35.98708242]
[1728478163610,0.02564876,2433.3,2433.2,20.76021442]
[1728478165083,0.0278901,2434.1,2433.9,4.10863]
[1728478165326,0.0278901,2434.1,2434.0,9.2751711]
[1728478165492,0.0278901,2434.1,2434.0,9.205023]
[1728478165700,0.0278901,2434.1,2434.0,9.21702718]
[1728478165932,0.0278901,2434.1,2434.0,9.22902718]
[1728478166232,0.0278901,2434.1,2434.0,9.24263746]
[1728478168825,0.0318901,2434.1,2434.0,9.24263746]
[1728478170656,0.0358901,2434.1,2434.0,9.24263746]
[1728478171063,0.0398901,2434.1,2434.0,4.58417746]
[1728478171269,0.0398901,2434.1,2434.0,0.76447746]
[1728478171420,0.0438901,2434.1,2434.0,0.76447746]
[1728478171757,0.0438901,2434.1,2434.0,4.87293746]
[1728478171925,0.0438901,2434.1,2434.0,4.95509492]
[1728478172462,0.0438901,2434.1,2434.0,8.50509492]
[1728478172623,0.0478901,2434.1,2434.0,8.42293746]
[1728478173049,0.05353886,2434.1,2434.0,8.42293746]
[1728478173529,0.05353886,2434.1,2434.0,7.87293746]
[1728478174448,0.05353886,2434.1,2434.0,3.76447746]
[1728478174834,0.05353886,2434.1,2434.0,0.05361446]
[1728478177166,0.05353886,2434.1,2434.0,4.16207446]
[1728478177377,0.05353886,2434.1,2434.0,4.24423487]
[1728478177672,0.05353886,2434.1,2434.0,5.61143487]
[1728478178376,0.05353886,2434.1,2434.0,5.61142542]
[1728478178547,0.05353886,2434.1,2434.0,7.14704631]
[1728478179573,0.05353886,2434.1,2434.0,10.14704631]
[1728478179869,0.05353886,2434.1,2434.0,10.06489535]
[1728478180180,0.05353886,2434.1,2434.0,10.70105887]
[1728478180536,0.05353886,2434.1,2434.0,10.06489535]
[1728478181369,0.05353886,2434.1,2434.0,26.43073735]
[1728478181571,0.05353886,2434.1,2434.0,27.00450132]
[1728478182570,0.05353886,2434.1,2434.0,16.25053235]
[1728478182745,0.05353886,2434.1,2434.0,10.06489535]
[1728478182942,0.05353886,2434.1,2434.0,12.23913935]
[1728478183473,0.05353886,2434.1,2434.0,47.23913935]
[1728478186379,0.05353886,2434.1,2434.0,12.23913935]
[1728478186576,0.05353886,2434.1,2434.0,5.69769535]
[1728478187880,0.05353886,2434.1,2434.0,0.05361446]
[1728478188044,0.05353886,2434.1,2434.0,4.24423326]
[1728478188237,0.05353886,2434.1,2434.0,0.05361446]
[1728478188574,0.05353886,2434.1,2434.0,0.1357707]
[1728478188776,0.05353886,2434.1,2434.0,4.2442307]
[1728478188981,0.05353886,2434.1,2434.0,5.49734353]
[1728478189236,0.05353886,2434.1,2434.0,1.38888353]
[1728478189444,0.05353886,2434.1,2434.0,0.05361446]
[1728478189623,0.05353886,2434.1,2434.0,0.69424913]
[1728478189936,4.93202886,2434.1,2434.0,0.05361446]
[1728478190502,8.73006045,2434.1,2434.0,0.05361446]
[1728478193817,0.82373886,2434.1,2434.0,0.05361446]
[1728478194155,0.05353886,2434.1,2434.0,4.16207446]
[1728478194345,0.05353886,2434.1,2434.0,5.57950108]
[1728478194856,0.05353886,2434.1,2434.0,2.11117287]
[1728478195042,0.05353886,2434.1,2434.0,0.05361446]
[1728478196521,4.16182886,2434.1,2434.0,0.05361446]
[1728478197033,0.82003886,2434.1,2434.0,0.05361446]
[1728478197555,4.92832886,2434.1,2434.0,0.05361446]
[1728478198122,0.82003886,2434.1,2434.0,0.05361446]
[1728478198322,0.05353886,2434.1,2434.0,0.05361446]
[1728478198525,0.05353886,2434.1,2434.0,1.05199287]
[1728478200333,0.05353886,2434.1,2434.0,8.92565287]
[1728478200554,0.05353886,2434.1,2434.0,10.03368933]
[1728478200871,0.05353886,2434.1,2434.0,9.39349691]
[1728478201172,0.05353886,2434.1,2434.0,10.03354833]
[1728478201377,0.05353886,2434.1,2434.0,4.60988833]
[1728478201700,0.05353886,2434.1,2434.0,1.05199287]
[1728478201833,4.16182886,2434.1,2434.0,0.96983691]
[1728478202034,4.16182886,2434.1,2434.0,0.05361446]
[1728478202753,0.05353886,2434.1,2434.0,0.05361446]
[1728478203143,0.05353886,2434.1,2434.0,4.16207446]
[1728478203372,0.05353886,2434.1,2434.0,4.24422821]
[1728478203570,0.05353886,2434.1,2434.0,0.13576821]
[1728478203880,0.05353886,2434.1,2434.0,5.24395603]
[1728478204052,0.05353886,2434.1,2434.0,8.24395603]
[1728478204284,0.05353886,2434.1,2434.0,9.47260228]
[1728478205197,0.05353886,2434.1,2434.0,12.04961367]
[1728478205556,0.05353886,2434.1,2434.0,9.47260228]
[1728478205951,0.05353886,2434.1,2434.0,12.04961367]
[1728478206195,0.05353886,2434.1,2434.0,9.47260228]
[1728478206695,0.05353886,2434.1,2434.0,30.98872784]
[1728478206901,0.04153886,2434.1,2434.0,30.98872784]
[1728478207057,0.03353886,2434.1,2434.0,34.42557064]
[1728478207398,0.03353886,2434.1,2434.0,31.83085735]
[1728478207752,0.03353886,2434.1,2434.0,27.84307806]
[1728478207986,0.03353886,2434.1,2434.0,29.44361043]
[1728478208187,0.03353886,2434.1,2434.0,26.45094855]
[1728478208637,0.04553886,2434.1,2434.0,23.45094855]
[1728478208934,0.05353886,2434.1,2434.0,23.45094855]
[1728478209233,0.05353886,2434.1,2434.0,18.58175258]
[1728478209386,0.05753886,2434.1,2434.0,5.54588258]
[1728478209714,0.06153886,2434.1,2434.0,1.43742258]
[1728478209911,0.06153886,2434.1,2434.0,4.43742258]
[1728478210425,0.06553886,2434.1,2434.0,4.43742258]
[1728478210583,0.06553886,2434.1,2434.0,0.43769476]
[1728478210783,7.97186045,2434.1,2434.0,0.43769476]
[1728478211011,0.06553886,2434.1,2434.0,5.05361446]
[1728478211322,0.06553886,2434.1,2434.0,5.51994688]
[1728478211623,0.06553886,2434.1,2434.0,11.00210657]
[1728478211826,0.06553886,2434.1,2434.0,10.91995173]
[1728478212024,0.06553886,2434.1,2434.0,11.46995173]
[1728478212323,0.06553886,2434.1,2434.0,14.46995173]
[1728478212733,0.06553886,2434.1,2434.0,14.46991718]
[1728478213232,0.06553886,2434.1,2434.0,13.91991718]
[1728478213530,0.06553886,2434.1,2434.0,9.81145718]
[1728478213824,0.06553886,2434.1,2434.0,13.91991718]
[1728478214127,0.06553886,2434.1,2434.0,14.46991718]
[1728478215738,0.06553886,2434.1,2434.0,13.91991718]
[1728478216094,0.06553886,2434.1,2434.0,13.53577415]
[1728478216516,0.06553886,2434.1,2434.0,13.91998273]
[1728478217510,0.06553886,2434.1,2434.0,9.81152273]
[1728478218548,0.06553886,2434.1,2434.0,14.46998273]
[1728478219107,0.06553886,2434.1,2434.0,9.81152273]
[1728478219328,0.06553886,2434.1,2434.0,6.81152273]
[1728478219540,0.06553886,2434.1,2434.0,6.81154307]
[1728478220106,0.06553886,2434.1,2434.0,6.8937014]
[1728478220411,0.06553886,2434.1,2434.0,11.0021614]
[1728478220599,0.06553886,2434.1,2434.0,10.92000307]
[1728478221325,0.06553886,2434.1,2434.0,6.81154307]
[1728478221525,4.17382886,2434.1,2434.0,5.43784338]
[1728478221839,0.06553886,2434.1,2434.0,5.43784338]
[1728478222207,0.06553886,2434.1,2434.0,5.05361446]
[1728478222615,4.17382886,2434.1,2434.0,5.43788388]
[1728478222812,0.06553886,2434.1,2434.0,5.05361446]
[1728478223404,0.06553886,2434.1,2434.0,5.43787216]
[1728478223945,0.06553886,2434.1,2434.0,6.45363228]
[1728478224103,0.06553886,2434.1,2434.0,10.56209228]
[1728478224304,0.06553886,2434.1,2434.0,11.17325123]
[1728478225943,0.06553886,2434.1,2434.0,7.06479123]
[1728478226138,0.06553886,2434.1,2434.0,6.45363228]
[1728478226344,0.06553886,2434.1,2434.0,10.25999355]
[1728478226574,0.06553886,2434.1,2434.0,10.17783458]
[1728478226841,0.06553886,2434.1,2434.0,7.06483337]
[1728478227027,0.06553886,2434.1,2434.0,6.45359538]
[1728478227914,0.06553886,2434.1,2434.0,0.43783526]
[1728478228121,8.77716045,2434.1,2434.0,0.43783526]
[1728478228335,8.77716045,2434.1,2434.0,0.05361446]
[1728478231828,4.97912886,2434.1,2434.0,0.05361446]
[1728478232128,0.06553886,2434.1,2434.0,0.05361446]
[1728478232860,4.17382886,2434.1,2434.0,0.05361446]
[1728478233021,0.06553886,2434.1,2434.0,0.05361446]
[1728478233466,4.17382886,2434.1,2434.0,0.05361446]
[1728478236176,4.95882886,2434.1,2434.0,0.05361446]
[1728478239471,4.17382886,2434.1,2434.0,0.05361446]
[1728478240654,0.06553886,2434.1,2434.0,0.05361446]
[1728478241267,4.17382886,2434.1,2434.0,0.05361446]
[1728478242375,6.27516091,2434.1,2434.0,0.05361446]
[1728478242970,4.98482886,2434.1,2434.0,0.05361446]
[1728478243168,8.78286045,2434.1,2434.0,0.05361446]
[1728478247042,8.78286045,2434.1,2433.4,0.61072701]
[1728478247043,4.1093,2433.5,2433.4,0.61072701]
[1728478247244,8.73383159,2433.5,2433.4,0.61072701]
[1728478247465,8.74183159,2433.5,2433.4,0.61072701]
[1728478247658,8.75383159,2433.5,2433.4,0.61072701]
[1728478247865,8.76748035,2433.5,2433.4,0.61072701]
[1728478248194,9.36208696,2433.5,2433.4,0.61072701]
[1728478248759,9.36208696,2433.5,2432.2,4.1114]
[1728478248760,4.11091,2432.6,2432.3,1.42030288]
[1728478248986,4.11091,2432.6,2432.3,0.8093]
[1728478249181,7.90868159,2432.7,2432.3,0.8093]
[1728478249182,12.01943159,2432.7,2432.3,0.8093]
[1728478249353,4.11091,2432.6,2432.3,0.8093]
[1728478249679,4.11091,2432.6,2432.4,0.58093]
[1728478250648,7.90868159,2432.7,2432.4,0.58093]
[1728478250964,7.90902159,2432.5,2432.2,5.0]
[1728478251293,12.02013159,2432.5,2432.2,5.0]
[1728478251481,12.02013159,2432.5,2432.0,4.93265]
[1728478251654,7.90902159,2432.5,2432.0,0.8209]
[1728478251848,0.008,2432.1,2432.0,0.8209]
[1728478252049,0.012,2432.1,2432.0,1.9025753]
[1728478252387,0.02,2432.1,2432.0,4.9025753]
[1728478252604,0.03364876,2432.1,2432.0,9.01441531]
[1728478252890,0.03364876,2432.1,2432.0,9.47994694]
[1728478252891,0.03764876,2432.1,2432.0,9.47994694]
[1728478253113,0.03764876,2432.1,2432.0,9.4821913]
[1728478253707,0.03764876,2432.1,2432.0,10.09116762]
[1728478253855,0.03764876,2432.1,2432.0,10.09117499]
[1728478254485,3.79803159,2433.5,2432.9,0.83]
[1728478254694,3.79803159,2433.3,2432.9,0.0821988]
[1728478254861,3.79803159,2433.3,2432.9,4.1924588]
[1728478255057,7.90746159,2433.5,2433.2,0.004]
[1728478255262,12.01686159,2433.5,2433.2,0.004]
[1728478255458,12.01684159,2433.5,2433.2,0.004]
[1728478255758,4.1095,2433.4,2433.2,0.004]
[1728478255966,3.79803159,2433.3,2433.2,0.004]
[1728478256161,4.1095,2433.4,2433.2,0.004]
[1728478256498,7.90767159,2433.3,2433.2,0.004]
[1728478257005,3.79803159,2433.3,2433.2,0.004]
[1728478257212,4.89217,2433.6,2433.2,0.004]
[1728478257213,3.79803159,2433.5,2433.2,0.004]
[1728478257370,3.79803159,2433.5,2433.2,0.08618663]
[1728478257371,7.90741159,2433.5,2433.2,0.08618663]
[1728478257569,7.90741159,2433.5,2433.4,0.008]
[1728478258505,9.18735975,2433.5,2433.4,0.008]
[1728478259305,9.18735975,2433.5,2433.4,0.012]
[1728478259497,3.79803159,2433.5,2433.4,0.012]
[1728478259731,7.90733159,2433.5,2433.4,0.012]
[1728478260475,3.79803159,2433.5,2433.4,0.016]
[1728478261027,3.79803159,2433.5,2433.4,0.024]
[1728478261175,3.79803159,2433.7,2433.4,4.13347]
[1728478261518,3.79803159,2433.7,2433.5,0.4215653]
[1728478261672,7.90709159,2433.7,2433.4,0.024]
[1728478262021,3.79803159,2433.7,2433.4,0.024]
[1728478262307,3.79803159,2433.7,2433.6,0.00560418]
[1728478262670,3.82592169,2434.1,2433.7,0.7936]
[1728478262872,0.0278901,2434.1,2433.8,0.49122242]
[1728478263106,0.0278901,2434.1,2434.0,4.11646]
[1728478263377,0.0278901,2434.1,2434.0,0.01361028]
[1728478263806,0.0278901,2434.1,2434.0,0.02161028]
[1728478264008,0.0278901,2434.1,2434.0,0.02561028]
[1728478264364,0.0278901,2434.1,2434.0,0.02961028]
[1728478264525,0.0278901,2434.1,2434.0,0.03761028]
[1728478264892,0.0278901,2434.1,2434.0,6.27338564]
[1728478265190,0.0278901,2434.1,2434.0,6.35553947]
[1728478265390,0.0318901,2434.1,2434.0,6.36114365]
[1728478266220,0.0318901,2434.1,2434.0,2.25668365]
[1728478266411,0.0318901,2434.1,2434.0,2.17852982]
[1728478267112,0.0318901,2434.1,2434.0,2.26068645]
[1728478267291,0.0358901,2434.1,2434.0,2.26068645]
[1728478267493,0.0398901,2434.1,2434.0,2.26068645]
[1728478267693,0.0438901,2434.1,2434.0,2.26068645]
[1728478268021,0.0518901,2434.1,2434.0,2.26068645]
[1728478268403,0.0518901,2434.1,2434.0,6.36914645]
[1728478268608,0.0518901,2434.1,2434.0,2.17852982]
[1728478268609,0.05753886,2434.1,2434.0,2.17852982]
[1728478269343,0.06153886,2434.1,2434.0,2.17852982]
[1728478269529,0.06553886,2434.1,2434.0,2.17852982]
[1728478269735,0.06553886,2434.1,2434.0,0.84481446]
[1728478269900,8.74896045,2434.1,2434.0,0.05121446]
[1728478270418,7.97186045,2434.1,2434.0,0.05121446]
[1728478271009,8.76456045,2434.1,2434.0,0.05121446]
[1728478271230,10.0518365,2434.1,2434.0,0.05121446]
[1728478272418,13.0518365,2434.1,2434.0,0.05121446]
[1728478274231,13.0518365,2434.1,2434.0,0.05121446]
[1728478276816,9.25380491,2434.1,2434.0,0.05121446]
[1728478277016,8.76456045,2434.1,2434.0,0.05121446]
[1728478277245,7.97186045,2434.1,2434.0,0.05121446]
[1728478281618,0.06553886,2434.1,2434.0,0.82361446]
[1728478281854,0.06553886,2434.1,2434.0,4.93207446]